Cogmind - Beta 13 @@@ ROGUE MODE // 2024.04.25 @ 11:41:46 Player: Kinga Result: Self-destructed Performance ------------- Evolutions (1) 500 Regions Visited (2) 400 Robots Destroyed (27) 135 Value Destroyed (814) 814 Prototype IDs (3) 60 Alien Tech Used (0) 0 Bonus (0) 0 TOTAL SCORE: 1909 Bonus ------- None Cogmind --------- Core Integrity 284/400 Matter 265/300 Energy 21/100 System Corruption 3% Temperature Cool (0) Movement Rolling (130) Ox2 Location -9/Materials Parts ------- > --- POWER (1) -------- (None) > --- PROPULSION (3) --- Compact Wheel > --- UTILITY (3) ------ Heat Sink High-capacity Storage Unit > --- WEAPON (2) ------- Improved EM Shotgun Improved EM Shotgun > --- INVENTORY (20) --- EM Pulse Gun Medium Laser Grenade Launcher Datajack Katana Peak State ------------ > --- POWER ------------ Light Nuclear Core > --- PROPULSION ------- Light Treads Compact Wheel Compact Wheel > --- UTILITY ---------- Heat Sink High-capacity Storage Unit > --- WEAPON ----------- Small Laser Small Laser > --- INVENTORY -------- Light Ion Engine EM Pulse Gun Medium Laser Medium Laser Grenade Launcher [Rating: 10] Favorites ----------- Power Light Ion Engine Engine Light Ion Engine Power Core Light Nuclear Core Propulsion Light Treads Treads Light Treads Wheel Compact Wheel Utility Small Storage Unit Device Heat Sink Storage Small Storage Unit Weapon Light Assault Rifle Energy Gun Small Laser Ballistic Gun Light Assault Rifle Build | -11 -10 -9 ------- Run | Yrd Mat Mat Slots Evolved 2 | . . 2 Power . | . . . Propulsion 1 | . . 1 Utility 1 | . . 1 Weapon . | . . . Parts Attached 24 | 6 9 9 Power 4 | 1 2 1 Engine 3 | 1 1 1 Core 1 | . 1 . Reactor . | . . . Propulsion 7 | 2 2 3 Treads 5 | 2 2 1 Leg . | . . . Wheel 2 | . . 2 Hover . | . . . Flight . | . . . Utility 5 | 1 3 1 Device 3 | . 2 1 Storage 2 | 1 1 . Processor . | . . . Hackware . | . . . Protection . | . . . Artifact . | . . . Weapon 8 | 2 2 4 Energy Gun 6 | . 2 4 Energy Cannon . | . . . Ballistic Gun 2 | 2 . . Ballistic Cannon . | . . . Launcher . | . . . Special Weapon . | . . . Impact Weapon . | . . . Slashing Weapon . | . . . Piercing Weapon . | . . . Special Melee Weapon . | . . . Unidentified Prototypes 1 | . . 1 Parts Lost 15 | . 7 8 Power 3 | . 1 2 Propulsion 5 | . 3 2 Utility 2 | . 1 1 Weapon 5 | . 2 3 Highest Loss Streak 5 | . 5 5 To Critical Strikes . | . . . Average Slot Usage (%) 86 | . 89 73 Engine 7 | . 8 2 Core 5 | . 5 6 Treads 23 | . 27 8 Wheel 2 | . . 12 Device 7 | . 5 12 Storage 13 | . 14 11 Energy Gun 5 | . 2 19 Ballistic Gun 20 | . 25 . Naked Turns . | . . . Heaviest Build 49 | 11 48 49 Greatest Support 40 | 40 40 32 Greatest Overweight (x) 2 | . 2 2 Average Overweight (x) . | . . 1 Largest Inventory Capacity 20 | 8 20 20 Average Capacity 13 | 7 11 20 Most Carried 12 | 4 12 6 Average Carried 6 | 2 7 4 Final Capacity 20 | 8 20 20 Final Carried 7 | 4 7 5 Class Distribution -------------------- 81% | Mutant 18% | Scavenger-Mutant Dominant Class ---------------- Mutant | -10/Materials Scavenger-Mutant | -9/Materials Resources | -11 -10 -9 ----------- Run | Yrd Mat Mat Matter Collected 589 | 206 312 71 Remotely . | . . . Salvage Created 1041 | . 762 279 Parts 55 | . 41 14 Haulers Intercepted 2 | . 2 . Recyclers Shooed . | . . . Parts Field Recycled . | . . . Retrieved Matter . | . . . Parts Self-Destructed . | . . . Prevented . | . . . Kills | -11 -10 -9 ------- Run | Yrd Mat Mat Combat Hostiles Destroyed 20 | . 14 6 Guns 20 | . 14 6 Classes Destroyed 9 | . 6 3 Tunneler 1 | . 1 . Hauler 2 | . 2 . Recycler 1 | . 1 . Operator 1 | . . 1 Watcher 2 | . 2 . Grunt 16 | . 12 4 Duelist 1 | . . 1 Sentry 1 | . . 1 Subdweller 2 | . 2 . Best Kill Streak 6 | . 6 4 Combat Bots Only 4 | . 4 3 Max Kills in Single Turn 2 | . 2 1 Gunslinging . | . . . Exploded . | . . . Melee . | . . . Uniques/NPCs Destroyed . | . . . Combat | -11 -10 -9 -------- Run | Yrd Mat Mat Hostile Shots Fired 151 | . 93 58 Missed 28 | . 18 10 Damage Taken 1924 | . 1137 787 Core 357 | . 241 116 Absorbed by Shields . | . . . Core Remaining (%) 51 | 100 3 . Volleys Fired 95 | . 68 27 Largest 2 | . 2 2 Hottest 90 | . 80 90 Shots Fired 188 | . 136 52 Gun 188 | . 136 52 Cannon . | . . . Launcher . | . . . Special . | . . . Kinetic 118 | . 118 . Thermal 68 | . 18 50 Explosive . | . . . Electromagnetic 2 | . . 2 Robot Hit Streak 28 | . 28 13 Robot Miss Streak 5 | . 5 2 Penetration Max . | . . . Secondary Targets 6 | . 4 2 Max Gunslinging Chain 1 | . 1 1 Shots Hit Robots 124 | . 90 34 Core Hits 54 | . 38 16 Critical Kills . | . . . Critical Parts Destroyed . | . . . Critical Strikes . | . . . Melee Attacks . | . . . Impact . | . . . Slashing . | . . . Piercing . | . . . Sneak Attacks . | . . . Combat Hostiles . | . . . Follow-up Attacks . | . . . Damage Inflicted 1372 | . 971 401 Guns 1363 | . 962 401 Cannons . | . . . Explosions . | . . . Melee . | . . . Ramming 9 | . 9 . Kinetic 803 | . 803 . Thermal 536 | . 159 377 Explosive . | . . . Electromagnetic 24 | . . 24 Impact . | . . . Slashing . | . . . Piercing . | . . . Highest Corruption 3 | . . 3 Average Corruption 3 | . . 3 Corruption Purged . | . . . Corruption Blocked . | . . . Overload Shots . | . . . Overflow Damage 84 | . . 84 Projectiles . | . . . Explosions 84 | . . 84 Melee . | . . . Knockbacks . | . . . Impact . | . . . Kinetic . | . . . Secondary . | . . . Self-Inflicted Damage 109 | . . 109 Shots 1 | . . 1 Rammed 2 | . 2 . Targets Rammed 3 | . 3 . Kicked . | . . . Crushed 1 | . 1 . Highest Temperature 189 | . 189 13 Average Temperature 44 | . 53 5 Received Heat Transfer 690 | . 492 198 Siege Activations . | . . . Robots Corrupted . | . . . Combat Hostiles . | . . . Parts Fried . | . . . Impact Corruptions . | . . . Robots Melted . | . . . Combat Hostiles . | . . . Parts Melted 2 | . 1 1 Heat Transferred 1320 | . 375 945 Parts Sabotaged . | . . . Parts Stolen . | . . . Parts Stripped . | . . . Power Chain Reactions . | . . . Alert | -11 -10 -9 ------- Run | Yrd Mat Mat Peak Influence 253 | . 253 251 Initial 42 | . . 42 Average 113 | . 125 115 Maximum Alert Level 1 | . 1 1 Low Security (%) 90 | 100 90 86 Level 1 9 | . 9 14 Level 2 . | . . . Level 3 . | . . . Level 4 . | . . . Level 5 . | . . . High Security . | . . . Max Security . | . . . Squads Dispatched 4 | . 3 1 Investigation 3 | . 2 1 Extermination . | . . . Reinforcement 1 | . 1 . Assault . | . . . Garrison . | . . . Intercept . | . . . Searches Triggered . | . . . Construction Impeded . | . . . Haulers Reinforced . | . . . Active Scanning Responses . | . . . Cargo Convoy Interrupts . | . . . Stealth | -11 -10 -9 --------- Run | Yrd Mat Mat Distress Signals . | . . . Communications Jammed . | . . . Distress Signals . | . . . Times Spotted 32 | . 19 13 Peak Tracking Total 5 | . 3 5 Tactical Retreats 2 | . 1 1 Traps | -11 -10 -9 ------- Run | Yrd Mat Mat Traps Triggered 1 | . 1 . Indirectly . | . . . Trap Hack Attempts . | . . . Triggered . | . . . Disarmed . | . . . Reprogrammed . | . . . Reused . | . . . Traps Extracted . | . . . Installed . | . . . Triggered . | . . . Machines | -11 -10 -9 ---------- Run | Yrd Mat Mat Machines Disabled 2 | . . 2 Max in Single Turn 2 | . . 2 Machines Repaired . | . . . Machines Dismantled . | . . . Machines Sabotaged . | . . . Overloaded Fab Kills . | . . . Hacking | -11 -10 -9 --------- Run | Yrd Mat Mat Machines Accessed 6 | . 5 1 Terminals 6 | . 5 1 Fabricators . | . . . Repair Stations . | . . . Recycling Units . | . . . Scanalyzers . | . . . Garrison Access . | . . . Total Hacks 19 | . 15 4 Successful 6 | . 6 . Failed 13 | . 9 4 Catastrophic 4 | . 1 3 Database Lockouts . | . . . Manual 1 | . 1 . Terminals 19 | . 15 4 Fabricators . | . . . Repair Stations . | . . . Recycling Units . | . . . Scanalyzers . | . . . Garrison Access . | . . . Terminal Hacks 5 | . 5 . Robot Analysis 2 | . 2 . Prototype ID Bank 1 | . 1 . Branch Access Points 1 | . 1 . Registered Prototypes 1 | . 1 . Fabricator Hacks . | . . . Repair Station Hacks . | . . . Recycling Unit Hacks . | . . . Scanalyzer . | . . . Garrison Access Hacks . | . . . Unauthorized Hacks 1 | . 1 . Terminals 1 | . 1 . Botnet 1 | . 1 . Fabricators . | . . . Repair Stations . | . . . Recycling Units . | . . . Scanalyzers . | . . . Garrison Access . | . . . Data Cores Recovered . | . . . Used . | . . . Hacking Detections 6 | . 5 1 Full Trace Events 2 | . 1 1 Feedback Events . | . . . Feedback Blocked . | . . . Robot Schematics Acquired . | . . . Robots Built . | . . . Authchips . | . . . Time . | . . . Total Robot Build Rating . | . . . Part Schematics Acquired . | . . . Parts Built . | . . . Authchips . | . . . Time . | . . . Total Part Build Rating . | . . . Parts Repaired . | . . . Time . | . . . Parts Recycled . | . . . Recycled Matter . | . . . Retrieved Matter . | . . . Retrieved Components . | . . . Parts Scanalyzed . | . . . Part Schematics Acquired . | . . . Parts Damaged . | . . . Bothacking | -11 -10 -9 ------------ Run | Yrd Mat Mat Used RIF Installer . | . . . Robots Hacked . | . . . Non-combat . | . . . Combat . | . . . Robot Hacks Applied . | . . . Relay Couplers Released . | . . . Fabnet Peak Effective % . | . . . Robots Rewired . | . . . Allies Hacked . | . . . Hacks Repelled . | . . . Allies | -11 -10 -9 -------- Run | Yrd Mat Mat Total Allies . | . . . Largest Group . | . . . Highest-Rated Group . | . . . Highest-Rated Ally . | . . . Total Orders . | . . . Ally Attacks . | . . . Total Damage . | . . . Kills . | . . . Allies Corrupted . | . . . Allies Melted . | . . . Intel | -11 -10 -9 ------- Run | Yrd Mat Mat Robot Analysis Total 2 | . 2 . Derelict Logs Recovered . | . . . Drone Launches . | . . . Drone Recoveries . | . . . Exploration | -11 -10 -9 ------------- Run | Yrd Mat Mat Turns Passed 1042 | 84 758 200 Spaces Moved 403 | 46 293 64 Core 1 | 1 . . Treads 352 | 45 293 14 Legs . | . . . Wheels 50 | . . 50 Hover . | . . . Flight . | . . . Fastest Speed 50 | 50 160 115 Average Speed 179 | 157 185 167 Slowest Speed 320 | 160 320 320 Overloaded Moves . | . . . Propulsion Burnouts . | . . . Robots Hopped . | . . . Cave-ins Triggered . | . . . Exploration Rate (%) 21 | 5 49 10 Regions Visited 2 Branch Regions . Pre-discovered Areas . | . . . Known Exits Taken . | . . . Unknown Exits Taken 2 | 1 1 . Scrap Searched . | . . . Spaces Dug . | . . . Terrain Destroyed 20 | . . 20 Melee . | . . . Projectile . | . . . AOE 20 | . . 20 Terrain Rammed . | . . . Walls Destroyed . | . . . Machines Disabled . | . . . Actions | -11 -10 -9 --------- Run | Yrd Mat Mat Total 540 | 55 382 103 Wait . | . . . Move 401 | 45 292 64 Hop . | . . . Pick Up 15 | 4 9 2 Fast Attach 12 | 6 1 5 Attach 11 | . 7 4 Detach . | . . . Swap 1 | . 1 . Drop 2 | . 1 1 Fire 95 | . 68 27 Melee . | . . . Ram . | . . . Kick . | . . . Crush 3 | . 3 . Escape Stasis . | . . . Rewire . | . . . Trap . | . . . Miscellaneous . | . . . Route ------- -11/Scrapyard -10/Materials (discovered 2 exits: *Mat / Min) -9/Materials History --------- Turn | Location | Event 8 | -11/Scrapyard | Discovered new exit (range 15) 85 | -11/Scrapyard | Entered Materials 128 | -10/Materials | Identified exit to Mines 275 | -10/Materials | Discovered new exit (range 4) 312 | -10/Materials | Build established: Mutant 545 | -10/Materials | Core integrity fell below 50% 685 | -10/Materials | Derelicts attacked the area 786 | -10/Materials | Core integrity fell below 20% 838 | -10/Materials | Lost 5 parts (3n2w) 843 | -10/Materials | Entered another Materials area 843 | -9/Materials | Evolved 2 slots: Propulsion x1, Utility x1 1043 | -9/Materials | Self-destructed Last Messages --------------- 01018_ Lgt. Ion Engine destroyed. 01018_ Destroyed Lgt. Ion Engine. 01018_ Atomic Centrifuge disabled. 01018_ Sml. Laser destroyed. 01020_ The unstable cave ceiling collapses. 01021_ U-05 Engineer lays Concrete. 01024_ Acquired Heat Sink. 01024_ U-05 Engineer lays Concrete. 01025_ The unstable cave ceiling collapses. 01026_ U-05 Engineer lays Concrete. 01030_ Acquired Prototype Energy Gun. 01030_ Identified Imp. EM Shotgun. 01033_ Acquired Faulty Imp. EM Shotgun. 01033_ Faulty integration triggers system corruption (+3). 01035_ Dropped Faulty Imp. EM Shotgun. 01036_ Acquired Imp. EM Shotgun. 01037_ K-01 Serf collects debris. 01041_ Heat Sink destroyed. 01042_ The unstable cave ceiling collapses. 01042_ K-01 Serf collects debris. Map ----- +----------------------------------------------------+ | ??????????????????????????????????########### ?? | | ??????????????????????????????????# # ?? | | ??????????????????????????????????# T # ? | | ??????????????????????????????????# ! # """ | | ?????????????????????# ?????????# """ """ # """" | | ?????????????????????# ?????????# """ """ # """" | | ?????????????????????# ?????????# """ """ # """" | | ?????????????????????# ?????????# = # """ | | ?????????????????????# ?????????# % # ? | | ?????????????????????# ##############"######+### | | ?????????????????????# %= = | | ?????????????????????# = %! | | ?????????????????????# % = | | ?????????? ??????????# k""" ss#########+### #### | | ?????????? ######### """ s#??# # #??? | | ?????????? r "" #??# # #??? | | ?????????? #??# # #??? | | ?????????? #??# *%# #??? | | ??????????????###### #??# =+ +??? | | ???????????????????# g #??# # #??? | | ???????????????????# g #??# # #??? | | ??????????????????### [ #??# # #??? | | ??????????????????# #%[ #??# # #??? | | ??????????????????## #??########## #??? | | ???????????????????# # #???????????# #??? | | ???????????????????### @ #???????????? ???? | | ?????????????????????# [ #??????????????????? | | ?????????????????????# #??????????????????? | | ?????????????????????##########??????????????????? | | ?????????????????????????????????????????????????? | | ?????????????????????????????????????????????????? | | ?????????????????????????????????????????????????? | | ?????????????????????????????????????????????????? | | ?????????????????????????????????????????????????? | | ?????????????????????????????????????????????????? | | ?????????????????????????????????????????????????? | | ?????????????????????????????????????????????????? | | ?????????????????????????????????????????????????? | | ?????????????????????????????????????????????????? | | ?????????????????????????????????????????????????? | | ?????????????????????????????????????????????????? | | ?????????????????????????????????????????????????? | | ?????????????????????????????????????????????????? | | ?????????????????????????????????????????????????? | | ?????????????????????????????????????????????????? | | ?????????????????????????????????????????????????? | | ?????????????????????????????????????????????????? | | ?????????????????????????????????????????????????? | | ?????????????????????????????????????????????????? | | ?????????????????????????????????????????????????? | +----------------------------------------------------+ Best States ------------- Heat Dissipation 48 Energy Generation 14 Energy Capacity 160 Matter Stores 300 Matter Capacity 300 Sight Range 16 Terrain Scan Density 10 Evasion (%) 40 Recoil Reduction 2 Item Schematics ----------------- None Robot Schematics ------------------ None Fabricated ------------ Nothing Alien Tech Used ----------------- None Achievements -------------- None Challenges ------------ None Game ------ Seed ReinforcedBeamMachine Manual? 0 Play Time 00:09:33 Cumulative 40.0 hours Start 2024.04.25 @ 11:33:50 End 2024.04.25 @ 11:41:46 Sessions 1 Manual Loads 0 Difficulty Rogue Special Mode None Game No. 57 Rogue 57 Adventurer 0 Explorer 0 Win Type - Total 3 Types 2/0/0/1/0/0/0/0/0 Lore% 24 Gallery% 48 Achievement% 39 Wizard Run 0 Options --------- Layout 0 ASCII 0 Keyboard 0 Movement Numpad Keybinds 0 Fullscreen 2 Font 18/SmallcapsGlow Map View 76x50 Zoom Use 0% Tactical HUD 1 Map Filters NONE Filters NONE Steam 1 RUN: 22db64b5-6e22-4078-83f4-bf9677e9e0b5